[Event "Titled Tuesday Blitz June 13 Late 2023"]
[White "Perez, Maximiliano"]
[Black "Carrasco Miranda, Andres"]
[WhiteFideId "117234"]
[BlackFideId "3405990"]
[WhiteElo "2334"]
[BlackElo "2183"]
[Result "1-0"]
[Round "4"]
[TimeControl "180+2"]
[Date "2023.06.13"]
[WhiteClock "0:00:50"]
[BlackClock "0:00:00"]
[Board "98"]

1. e4 {[%clk 0:03:00]}  e5 {[%clk 0:02:48]} 2. Nf3 {[%clk 0:03:01]}  Nc6 {[%clk 0:02:48]} 3. Bc4 {[%clk 0:03:01]}  Bc5 {[%clk 0:02:47]} 4. O-O {[%clk 0:03:02]}  Nf6 {[%clk 0:02:47]} 5. d3 {[%clk 0:03:02]}  d6 {[%clk 0:02:47]} 6. c3 {[%clk 0:03:03]}  a5 {[%clk 0:02:45]} 7. Re1 {[%clk 0:03:02]}  Ba7 {[%clk 0:02:34]} 8. Nbd2 {[%clk 0:03:00]}  Ng4 {[%clk 0:02:33]} 9. Re2 {[%clk 0:03:00]}  O-O {[%clk 0:02:32]} 10. h3 {[%clk 0:03:00]}  Nh6 {[%clk 0:02:32]} 11. Nf1 {[%clk 0:02:59]}  Kh8 {[%clk 0:02:32]} 12. Bg5 {[%clk 0:02:56]}  f6 {[%clk 0:02:31]} 13. Bxh6 {[%clk 0:02:55]}  gxh6 {[%clk 0:02:32]} 14. Nh4 {[%clk 0:02:56]}  f5 {[%clk 0:02:31]} 15. Nxf5 {[%clk 0:02:53]}  Bxf5 {[%clk 0:02:31]} 16. exf5 {[%clk 0:02:54]}  Rxf5 {[%clk 0:02:29]} 17. Ng3 {[%clk 0:02:49]}  Rg5 {[%clk 0:02:27]} 18. Ne4 {[%clk 0:02:49]}  Rg6 {[%clk 0:02:21]} 19. Bd5 {[%clk 0:02:49]}  Qh4 {[%clk 0:02:18]} 20. Kf1 {[%clk 0:02:38]}  Rf8 {[%clk 0:02:04]} 21. Qd2 {[%clk 0:02:25]}  Ne7 {[%clk 0:01:45]} 22. Bxb7 {[%clk 0:02:14]}  d5 {[%clk 0:01:44]} 23. d4 {[%clk 0:02:08]}  dxe4 {[%clk 0:01:41]} 24. Bxe4 {[%clk 0:02:09]}  Rgf6 {[%clk 0:01:33]} 25. Ke1 {[%clk 0:02:03]}  exd4 {[%clk 0:01:31]} 26. cxd4 {[%clk 0:02:04]}  Re6 {[%clk 0:01:24]} 27. Rc1 {[%clk 0:02:02]}  Rxe4 {[%clk 0:01:21]} 28. Rxc7 {[%clk 0:01:58]}  Bxd4 {[%clk 0:01:12]} 29. g3 {[%clk 0:01:55]}  Qxh3 {[%clk 0:01:02]} 30. Kd1 {[%clk 0:01:41]}  Qf1+ {[%clk 0:00:55]} 31. Re1 {[%clk 0:01:40]}  Rxe1+ {[%clk 0:00:53]} 32. Qxe1 {[%clk 0:01:41]}  Qxe1+ {[%clk 0:00:53]} 33. Kxe1 {[%clk 0:01:42]}  Bxf2+ {[%clk 0:00:52]} 34. Ke2 {[%clk 0:01:42]}  Nd5 {[%clk 0:00:49]} 35. Rd7 {[%clk 0:01:40]}  Nb6 {[%clk 0:00:42]} 36. Rb7 {[%clk 0:01:37]}  Nc4 {[%clk 0:00:28]} 37. g4 {[%clk 0:01:35]}  Ne5 {[%clk 0:00:21]} 38. Rb5 {[%clk 0:01:31]}  Nxg4 {[%clk 0:00:21]} 39. Rxa5 {[%clk 0:01:31]}  Bd4 {[%clk 0:00:19]} 40. b4 {[%clk 0:01:30]}  Bc3 {[%clk 0:00:18]} 41. a3 {[%clk 0:01:29]}  Nf6 {[%clk 0:00:14]} 42. Rf5 {[%clk 0:01:27]}  h5 {[%clk 0:00:13]} 43. b5 {[%clk 0:01:26]}  Ba5 {[%clk 0:00:11]} 44. Kd3 {[%clk 0:01:22]}  h4 {[%clk 0:00:10]} 45. Rf4 {[%clk 0:01:22]}  h3 {[%clk 0:00:08]} 46. Rh4 {[%clk 0:01:22]}  Rd8+ {[%clk 0:00:07]} 47. Kc4 {[%clk 0:01:20]}  Nd5 {[%clk 0:00:03]} 48. Rxh3 {[%clk 0:01:19]}  Nb6+ {[%clk 0:00:03]} 49. Kc5 {[%clk 0:01:19]}  Rc8+ {[%clk 0:00:03]} 50. Kd6 {[%clk 0:01:17]}  Rc4 {[%clk 0:00:03]} 51. Rb3 {[%clk 0:01:05]}  h5 {[%clk 0:00:01]} 52. Rh3 {[%clk 0:01:01]}  h4 {[%clk 0:00:02]} 53. Ke5 {[%clk 0:01:01]}  Kh7 {[%clk 0:00:03]} 54. Kf5 {[%clk 0:01:01]}  Kh6 {[%clk 0:00:03]} 55. Rd3 {[%clk 0:01:00]}  Kh5 {[%clk 0:00:04]} 56. Rd8 {[%clk 0:00:54]}  Rc5+ {[%clk 0:00:03]} 57. Ke4 {[%clk 0:00:54]}  Kg4 {[%clk 0:00:03]} 58. a4 {[%clk 0:00:53]}  h3 {[%clk 0:00:03]} 59. Rg8+ {[%clk 0:00:52]}  Kh4 {[%clk 0:00:00]} 60. Kf3 {[%clk 0:00:50]} 1-0


[Site "https://www.chess.com"]

[Event "Titled Tuesday Blitz June 13 Late 2023"]
[White "Aung Thant Zin"]
[Black "Janaszak, Dawid"]
[WhiteFideId "13000063"]
[BlackFideId "1119206"]
[WhiteElo "2278"]
[BlackElo "2220"]
[Result "0-1"]
[Round "4"]
[TimeControl "180+2"]
[Date "2023.06.13"]
[WhiteClock "0:00:01"]
[BlackClock "0:00:35"]
[Board "105"]

1. e4 {[%clk 0:02:54]}  c5 {[%clk 0:02:09]} 2. Nf3 {[%clk 0:02:51]}  Nc6 {[%clk 0:02:07]} 3. Bb5 {[%clk 0:02:50]}  e5 {[%clk 0:02:04]} 4. c3 {[%clk 0:02:49]}  Nge7 {[%clk 0:02:03]} 5. O-O {[%clk 0:02:48]}  g6 {[%clk 0:02:03]} 6. d4 {[%clk 0:02:48]}  cxd4 {[%clk 0:02:03]} 7. cxd4 {[%clk 0:02:47]}  exd4 {[%clk 0:02:04]} 8. Nxd4 {[%clk 0:02:28]}  Bg7 {[%clk 0:02:04]} 9. Be3 {[%clk 0:02:28]}  O-O {[%clk 0:02:05]} 10. Nc3 {[%clk 0:02:18]}  d5 {[%clk 0:02:04]} 11. exd5 {[%clk 0:02:11]}  Nb4 {[%clk 0:02:03]} 12. Nde2 {[%clk 0:01:30]}  Nbxd5 {[%clk 0:02:01]} 13. Nxd5 {[%clk 0:01:28]}  Qxd5 {[%clk 0:01:56]} 14. Qxd5 {[%clk 0:01:27]}  Nxd5 {[%clk 0:01:56]} 15. Bc5 {[%clk 0:01:28]}  Rd8 {[%clk 0:01:51]} 16. Rad1 {[%clk 0:01:15]}  Bg4 {[%clk 0:01:47]} 17. f3 {[%clk 0:01:13]}  Bd7 {[%clk 0:01:25]} 18. Bxd7 {[%clk 0:00:53]}  Rxd7 {[%clk 0:01:26]} 19. b4 {[%clk 0:00:52]}  b6 {[%clk 0:01:11]} 20. Bf2 {[%clk 0:00:50]}  Rad8 {[%clk 0:01:03]} 21. b5 {[%clk 0:00:47]}  Nf4 {[%clk 0:00:55]} 22. Rde1 {[%clk 0:00:42]}  Nd3 {[%clk 0:00:50]} 23. Rb1 {[%clk 0:00:40]}  Re8 {[%clk 0:00:36]} 24. g3 {[%clk 0:00:01]}  Rxe2 {[%clk 0:00:35]} 0-1


[Site "https://www.chess.com"]

[Event "Titled Tuesday Blitz June 13 Late 2023"]
[White "Tristan, Leonardo"]
[Black "Balla, Tamas-Kristof"]
[WhiteFideId "113816"]
[BlackFideId "1208497"]
[WhiteElo "2461"]
[BlackElo "2334"]
[Result "1-0"]
[Round "4"]
[TimeControl "180+2"]
[Date "2023.06.13"]
[WhiteClock "0:00:25"]
[BlackClock "0:00:04"]
[Board "111"]

1. d4 {[%clk 0:03:00]}  d5 {[%clk 0:02:58]} 2. Nf3 {[%clk 0:03:01]}  Nf6 {[%clk 0:02:55]} 3. Bf4 {[%clk 0:03:01]}  e6 {[%clk 0:02:55]} 4. e3 {[%clk 0:03:01]}  Bd6 {[%clk 0:02:56]} 5. Nbd2 {[%clk 0:03:01]}  O-O {[%clk 0:02:55]} 6. c3 {[%clk 0:03:00]}  b6 {[%clk 0:02:55]} 7. h4 {[%clk 0:02:59]}  c5 {[%clk 0:02:51]} 8. Bxd6 {[%clk 0:02:42]}  Qxd6 {[%clk 0:02:51]} 9. h5 {[%clk 0:02:43]}  h6 {[%clk 0:02:51]} 10. Ne5 {[%clk 0:02:38]}  Ba6 {[%clk 0:02:45]} 11. Bxa6 {[%clk 0:02:35]}  Nxa6 {[%clk 0:02:46]} 12. g4 {[%clk 0:02:23]}  cxd4 {[%clk 0:02:29]} 13. exd4 {[%clk 0:02:17]}  Nd7 {[%clk 0:02:19]} 14. f4 {[%clk 0:02:16]}  Nxe5 {[%clk 0:02:15]} 15. fxe5 {[%clk 0:02:15]}  Qe7 {[%clk 0:02:06]} 16. Qe2 {[%clk 0:02:00]}  Nc7 {[%clk 0:01:56]} 17. Nf3 {[%clk 0:02:00]}  f6 {[%clk 0:01:52]} 18. O-O-O {[%clk 0:01:19]}  b5 {[%clk 0:01:44]} 19. exf6 {[%clk 0:01:08]}  Qxf6 {[%clk 0:01:36]} 20. Ne5 {[%clk 0:01:09]}  b4 {[%clk 0:01:33]} 21. cxb4 {[%clk 0:01:06]}  a5 {[%clk 0:01:29]} 22. b5 {[%clk 0:00:47]}  a4 {[%clk 0:01:22]} 23. Kb1 {[%clk 0:00:47]}  Qg5 {[%clk 0:00:53]} 24. b6 {[%clk 0:00:41]}  Na6 {[%clk 0:00:45]} 25. b7 {[%clk 0:00:39]}  Ra7 {[%clk 0:00:45]} 26. Nc6 {[%clk 0:00:38]}  Nb4 {[%clk 0:00:20]} 27. Nxa7 {[%clk 0:00:31]}  Qe7 {[%clk 0:00:05]} 28. Qb5 {[%clk 0:00:25]}  Rf2 {[%clk 0:00:04]} 29. b8=Q+ {[%clk 0:00:25]} 1-0


[Site "https://www.chess.com"]

[Event "Titled Tuesday Blitz June 13 Late 2023"]
[White "Renjith, Sravan"]
[Black "Karas, Marek"]
[WhiteFideId "4306783"]
[BlackFideId "14928558"]
[WhiteElo "2104"]
[BlackElo "2229"]
[Result "0-1"]
[Round "4"]
[TimeControl "180+2"]
[Date "2023.06.13"]
[WhiteClock "0:00:01"]
[BlackClock "0:00:05"]
[Board "113"]

1. e4 {[%clk 0:03:00]}  f5 {[%clk 0:02:58]} 2. exf5 {[%clk 0:02:57]}  Nf6 {[%clk 0:02:58]} 3. d4 {[%clk 0:02:52]}  d5 {[%clk 0:02:58]} 4. Bd3 {[%clk 0:02:51]}  e6 {[%clk 0:02:58]} 5. fxe6 {[%clk 0:02:51]}  c5 {[%clk 0:02:58]} 6. Nf3 {[%clk 0:02:52]}  Bxe6 {[%clk 0:02:57]} 7. dxc5 {[%clk 0:02:52]}  Bxc5 {[%clk 0:02:57]} 8. O-O {[%clk 0:02:52]}  O-O {[%clk 0:02:58]} 9. Re1 {[%clk 0:02:51]}  Bg4 {[%clk 0:02:52]} 10. h3 {[%clk 0:02:47]}  Bh5 {[%clk 0:02:52]} 11. Be2 {[%clk 0:02:44]}  Ne4 {[%clk 0:02:48]} 12. Be3 {[%clk 0:02:41]}  Bxe3 {[%clk 0:02:43]} 13. fxe3 {[%clk 0:02:42]}  Nc6 {[%clk 0:02:42]} 14. Nbd2 {[%clk 0:02:32]}  Ng3 {[%clk 0:02:28]} 15. Bd3 {[%clk 0:02:25]}  Qb6 {[%clk 0:02:20]} 16. Nf1 {[%clk 0:02:12]}  Bxf3 {[%clk 0:02:13]} 17. gxf3 {[%clk 0:02:12]}  Nxf1 {[%clk 0:02:07]} 18. Bxf1 {[%clk 0:02:12]}  Qxb2 {[%clk 0:01:56]} 19. Qxd5+ {[%clk 0:02:09]}  Kh8 {[%clk 0:01:56]} 20. Bd3 {[%clk 0:02:08]}  Rf6 {[%clk 0:01:29]} 21. Rab1 {[%clk 0:01:59]}  Qc3 {[%clk 0:01:28]} 22. f4 {[%clk 0:01:52]}  Rd8 {[%clk 0:01:18]} 23. Qe4 {[%clk 0:01:51]}  Rg6+ {[%clk 0:01:15]} 24. Kh1 {[%clk 0:01:49]}  Rh6 {[%clk 0:01:08]} 25. Qg2 {[%clk 0:01:40]}  b6 {[%clk 0:00:51]} 26. Rg1 {[%clk 0:01:40]}  Qf6 {[%clk 0:00:43]} 27. Rb5 {[%clk 0:01:39]}  Ne7 {[%clk 0:00:39]} 28. Re5 {[%clk 0:01:32]}  Ng6 {[%clk 0:00:35]} 29. Rg5 {[%clk 0:01:32]}  Nh4 {[%clk 0:00:31]} 30. Qg3 {[%clk 0:01:31]}  g6 {[%clk 0:00:30]} 31. f5 {[%clk 0:01:28]}  Rg8 {[%clk 0:00:20]} 32. fxg6 {[%clk 0:01:25]}  Nxg6 {[%clk 0:00:17]} 33. Bxg6 {[%clk 0:01:22]}  Rhxg6 {[%clk 0:00:17]} 34. Rxg6 {[%clk 0:01:21]}  hxg6 {[%clk 0:00:14]} 35. Rg2 {[%clk 0:01:16]}  Rg7 {[%clk 0:00:13]} 36. Rf2 {[%clk 0:01:15]}  Qe7 {[%clk 0:00:10]} 37. Qf4 {[%clk 0:01:13]}  Kh7 {[%clk 0:00:09]} 38. Qg3 {[%clk 0:01:12]}  Qe4+ {[%clk 0:00:04]} 39. Kh2 {[%clk 0:01:11]}  Re7 {[%clk 0:00:04]} 40. Rg2 {[%clk 0:01:05]}  Qe5 {[%clk 0:00:04]} 41. Re2 {[%clk 0:00:56]}  Qxg3+ {[%clk 0:00:05]} 42. Kxg3 {[%clk 0:00:57]}  Re5 {[%clk 0:00:05]} 43. e4 {[%clk 0:00:57]}  Kg7 {[%clk 0:00:05]} 44. Kf4 {[%clk 0:00:57]}  Kf6 {[%clk 0:00:06]} 45. h4 {[%clk 0:00:57]}  Ra5 {[%clk 0:00:06]} 46. e5+ {[%clk 0:00:54]}  Ke6 {[%clk 0:00:06]} 47. Rg2 {[%clk 0:00:54]}  Ra4+ {[%clk 0:00:06]} 48. Kg5 {[%clk 0:00:49]}  Kxe5 {[%clk 0:00:06]} 49. Re2+ {[%clk 0:00:48]}  Kd6 {[%clk 0:00:07]} 50. c3 {[%clk 0:00:44]}  Rc4 {[%clk 0:00:06]} 51. Rd2+ {[%clk 0:00:44]}  Ke6 {[%clk 0:00:06]} 52. Rd3 {[%clk 0:00:42]}  Kf7 {[%clk 0:00:05]} 53. Rf3+ {[%clk 0:00:41]}  Kg7 {[%clk 0:00:06]} 54. Rd3 {[%clk 0:00:41]}  Rc5+ {[%clk 0:00:06]} 55. Kg4 {[%clk 0:00:41]}  Rc7 {[%clk 0:00:07]} 56. Kf4 {[%clk 0:00:38]}  Rc4+ {[%clk 0:00:07]} 57. Kg5 {[%clk 0:00:38]}  Rc5+ {[%clk 0:00:07]} 58. Kg4 {[%clk 0:00:38]}  Rc4+ {[%clk 0:00:08]} 59. Kg3 {[%clk 0:00:38]}  Ra4 {[%clk 0:00:06]} 60. Rd2 {[%clk 0:00:35]}  Kh6 {[%clk 0:00:07]} 61. Kf3 {[%clk 0:00:33]}  Rxh4 {[%clk 0:00:05]} 62. Kg3 {[%clk 0:00:33]}  Ra4 {[%clk 0:00:05]} 63. Re2 {[%clk 0:00:33]}  Kg5 {[%clk 0:00:06]} 64. Kf3 {[%clk 0:00:29]}  Kf5 {[%clk 0:00:06]} 65. Rd2 {[%clk 0:00:29]}  Ra3 {[%clk 0:00:07]} 66. Rc2 {[%clk 0:00:28]}  Ke5 {[%clk 0:00:07]} 67. Ke3 {[%clk 0:00:28]}  Kd5 {[%clk 0:00:08]} 68. Kd3 {[%clk 0:00:29]}  g5 {[%clk 0:00:08]} 69. Rg2 {[%clk 0:00:29]}  Kc6 {[%clk 0:00:08]} 70. Kc4 {[%clk 0:00:29]}  Ra5 {[%clk 0:00:07]} 71. Rh2 {[%clk 0:00:26]}  Rc5+ {[%clk 0:00:08]} 72. Kd4 {[%clk 0:00:26]}  Rf5 {[%clk 0:00:09]} 73. Rh7 {[%clk 0:00:23]}  Rf4+ {[%clk 0:00:08]} 74. Kd3 {[%clk 0:00:22]}  Ra4 {[%clk 0:00:09]} 75. Rg7 {[%clk 0:00:21]}  g4 {[%clk 0:00:08]} 76. c4 {[%clk 0:00:20]}  Rxa2 {[%clk 0:00:09]} 77. Rxg4 {[%clk 0:00:20]}  Rf2 {[%clk 0:00:09]} 78. Rg5 {[%clk 0:00:19]}  a5 {[%clk 0:00:08]} 79. Kd4 {[%clk 0:00:19]}  Rf4+ {[%clk 0:00:08]} 80. Kc3 {[%clk 0:00:18]}  Rh4 {[%clk 0:00:08]} 81. Rg6+ {[%clk 0:00:18]}  Kb7 {[%clk 0:00:08]} 82. Kb3 {[%clk 0:00:18]}  Ka6 {[%clk 0:00:08]} 83. Rf6 {[%clk 0:00:18]}  Rh3+ {[%clk 0:00:07]} 84. Kc2 {[%clk 0:00:18]}  Kb7 {[%clk 0:00:06]} 85. Rg6 {[%clk 0:00:17]}  Rf3 {[%clk 0:00:06]} 86. Rh6 {[%clk 0:00:16]}  Kc7 {[%clk 0:00:06]} 87. Rg6 {[%clk 0:00:15]}  Rf5 {[%clk 0:00:06]} 88. Kc3 {[%clk 0:00:15]}  Rf7 {[%clk 0:00:06]} 89. Kb3 {[%clk 0:00:15]}  Rd7 {[%clk 0:00:07]} 90. Ka4 {[%clk 0:00:15]}  Rd6 {[%clk 0:00:07]} 91. Rg8 {[%clk 0:00:13]}  Kc6 {[%clk 0:00:07]} 92. Rc8+ {[%clk 0:00:13]}  Kb7 {[%clk 0:00:08]} 93. Rg8 {[%clk 0:00:13]}  Rc6 {[%clk 0:00:08]} 94. Rg4 {[%clk 0:00:11]}  Rc5 {[%clk 0:00:09]} 95. Kb3 {[%clk 0:00:10]}  Ka6 {[%clk 0:00:08]} 96. Rg6 {[%clk 0:00:10]}  Rc7 {[%clk 0:00:08]} 97. Rf6 {[%clk 0:00:10]}  Kb7 {[%clk 0:00:08]} 98. Rg6 {[%clk 0:00:10]}  Rc6 {[%clk 0:00:08]} 99. Rg7+ {[%clk 0:00:10]}  Ka6 {[%clk 0:00:09]} 100. Rg5 {[%clk 0:00:10]}  Rh6 {[%clk 0:00:09]} 101. Rf5 {[%clk 0:00:10]}  Rh3+ {[%clk 0:00:09]} 102. Ka4 {[%clk 0:00:09]}  Rc3 {[%clk 0:00:09]} 103. Rf4 {[%clk 0:00:08]}  Kb7 {[%clk 0:00:10]} 104. Kb5 {[%clk 0:00:08]}  Rb3+ {[%clk 0:00:10]} 105. Ka4 {[%clk 0:00:07]}  Rb4+ {[%clk 0:00:10]} 106. Ka3 {[%clk 0:00:08]}  Kc6 {[%clk 0:00:11]} 107. Rf6+ {[%clk 0:00:08]}  Kc5 {[%clk 0:00:11]} 108. Rf8 {[%clk 0:00:07]}  Kxc4 {[%clk 0:00:11]} 109. Rc8+ {[%clk 0:00:08]}  Kb5 {[%clk 0:00:11]} 110. Rc1 {[%clk 0:00:07]}  Ra4+ {[%clk 0:00:11]} 111. Kb3 {[%clk 0:00:08]}  Rb4+ {[%clk 0:00:11]} 112. Ka3 {[%clk 0:00:08]}  Ka6 {[%clk 0:00:12]} 113. Rc6 {[%clk 0:00:07]}  Rb5 {[%clk 0:00:12]} 114. Rg6 {[%clk 0:00:07]}  Rc5 {[%clk 0:00:13]} 115. Rg8 {[%clk 0:00:07]}  Rc3+ {[%clk 0:00:13]} 116. Kb2 {[%clk 0:00:06]}  Rh3 {[%clk 0:00:14]} 117. Ra8+ {[%clk 0:00:05]}  Kb5 {[%clk 0:00:15]} 118. Rg8 {[%clk 0:00:06]}  a4 {[%clk 0:00:13]} 119. Rg5+ {[%clk 0:00:07]}  Kb4 {[%clk 0:00:14]} 120. Rg4+ {[%clk 0:00:08]}  Ka5 {[%clk 0:00:14]} 121. Rg5+ {[%clk 0:00:08]}  b5 {[%clk 0:00:15]} 122. Rg7 {[%clk 0:00:08]}  Kb4 {[%clk 0:00:15]} 123. Rg4+ {[%clk 0:00:09]}  Ka5 {[%clk 0:00:16]} 124. Rg5 {[%clk 0:00:09]}  Rh2+ {[%clk 0:00:16]} 125. Ka3 {[%clk 0:00:09]}  Rh4 {[%clk 0:00:14]} 126. Rf5 {[%clk 0:00:09]}  Rh3+ {[%clk 0:00:12]} 127. Kb2 {[%clk 0:00:08]}  Rd3 {[%clk 0:00:12]} 128. Rg5 {[%clk 0:00:08]}  Rd4 {[%clk 0:00:13]} 129. Kc3 {[%clk 0:00:08]}  Rd6 {[%clk 0:00:13]} 130. Kb2 {[%clk 0:00:08]}  Kb6 {[%clk 0:00:13]} 131. Ka3 {[%clk 0:00:08]}  Rd3+ {[%clk 0:00:12]} 132. Kb2 {[%clk 0:00:08]}  Kc6 {[%clk 0:00:11]} 133. Rh5 {[%clk 0:00:06]}  b4 {[%clk 0:00:10]} 134. Ra5 {[%clk 0:00:05]}  Rd2+ {[%clk 0:00:09]} 135. Kc1 {[%clk 0:00:05]}  Ra2 {[%clk 0:00:09]} 136. Kb1 {[%clk 0:00:05]}  Ra3 {[%clk 0:00:09]} 137. Kb2 {[%clk 0:00:05]}  Kb6 {[%clk 0:00:07]} 138. Ra8 {[%clk 0:00:04]}  Rb3+ {[%clk 0:00:08]} 139. Ka2 {[%clk 0:00:04]}  Ra3+ {[%clk 0:00:08]} 140. Kb2 {[%clk 0:00:05]}  Kb7 {[%clk 0:00:06]} 141. Ra5 {[%clk 0:00:04]}  Kc6 {[%clk 0:00:06]} 142. Ra8 {[%clk 0:00:01]}  Rb3+ {[%clk 0:00:04]} 143. Ka2 {[%clk 0:00:01]}  Kb5 {[%clk 0:00:04]} 144. Rb8+ {[%clk 0:00:01]}  Kc4 {[%clk 0:00:05]} 145. Ra8 {[%clk 0:00:02]}  Rh3 {[%clk 0:00:03]} 146. Kb2 {[%clk 0:00:03]}  Rh2+ {[%clk 0:00:03]} 147. Kb1 {[%clk 0:00:03]}  Kb3 {[%clk 0:00:03]} 148. Kc1 {[%clk 0:00:04]}  Rh1+ {[%clk 0:00:03]} 149. Kd2 {[%clk 0:00:03]}  a3 {[%clk 0:00:04]} 150. Rg8 {[%clk 0:00:03]}  Kb2 {[%clk 0:00:04]} 151. Rg3 {[%clk 0:00:04]}  b3 {[%clk 0:00:04]} 152. Rg4 {[%clk 0:00:05]}  Rh2+ {[%clk 0:00:04]} 153. Ke3 {[%clk 0:00:01]}  a2 {[%clk 0:00:05]} 0-1


[Site "https://www.chess.com"]

[Event "Titled Tuesday Blitz June 13 Late 2023"]
[White "Bouget, Alexandre"]
[Black "Jeet, Jain"]
[WhiteFideId "681318"]
[BlackFideId "5073022"]
[WhiteElo "2189"]
[BlackElo "2067"]
[Result "0-1"]
[Round "4"]
[TimeControl "180+2"]
[Date "2023.06.13"]
[WhiteClock "0:00:00"]
[BlackClock "0:01:10"]
[Board "115"]

1. d4 {[%clk 0:02:59]}  d6 {[%clk 0:02:59]} 2. c4 {[%clk 0:02:59]}  Nf6 {[%clk 0:02:59]} 3. Nc3 {[%clk 0:02:59]}  g6 {[%clk 0:02:58]} 4. e4 {[%clk 0:02:59]}  Bg7 {[%clk 0:02:58]} 5. Be2 {[%clk 0:03:00]}  O-O {[%clk 0:02:59]} 6. g4 {[%clk 0:03:01]}  c5 {[%clk 0:02:57]} 7. g5 {[%clk 0:02:56]}  Nfd7 {[%clk 0:02:56]} 8. d5 {[%clk 0:02:56]}  a6 {[%clk 0:02:53]} 9. h4 {[%clk 0:02:57]}  b5 {[%clk 0:02:53]} 10. h5 {[%clk 0:02:43]}  Ne5 {[%clk 0:02:54]} 11. hxg6 {[%clk 0:02:12]}  fxg6 {[%clk 0:02:53]} 12. f4 {[%clk 0:02:12]}  Nxc4 {[%clk 0:02:53]} 13. Bxc4 {[%clk 0:02:06]}  bxc4 {[%clk 0:02:53]} 14. Qe2 {[%clk 0:02:07]}  Nd7 {[%clk 0:02:48]} 15. Qh2 {[%clk 0:02:05]}  Kf7 {[%clk 0:02:48]} 16. Nf3 {[%clk 0:01:53]}  Qa5 {[%clk 0:02:45]} 17. Bd2 {[%clk 0:01:52]}  Rb8 {[%clk 0:02:45]} 18. e5 {[%clk 0:01:50]}  Ke8 {[%clk 0:02:33]} 19. Qxh7 {[%clk 0:01:48]}  Rf7 {[%clk 0:02:20]} 20. e6 {[%clk 0:01:43]}  Nf8 {[%clk 0:02:14]} 21. exf7+ {[%clk 0:01:14]}  Kxf7 {[%clk 0:02:15]} 22. Qh4 {[%clk 0:00:50]}  Rxb2 {[%clk 0:02:15]} 23. Rc1 {[%clk 0:00:36]}  Bf5 {[%clk 0:02:06]} 24. Nd1 {[%clk 0:00:31]}  Rxd2 {[%clk 0:02:04]} 25. Nxd2 {[%clk 0:00:28]}  c3 {[%clk 0:02:04]} 26. Nb3 {[%clk 0:00:26]}  Qxa2 {[%clk 0:02:02]} 27. Nxc3 {[%clk 0:00:16]}  Qxb3 {[%clk 0:02:01]} 28. Qg3 {[%clk 0:00:16]}  Bd4 {[%clk 0:01:53]} 29. Ne2 {[%clk 0:00:10]}  Qxd5 {[%clk 0:01:43]} 30. Rf1 {[%clk 0:00:04]}  Bg7 {[%clk 0:01:40]} 31. Qe3 {[%clk 0:00:03]}  Nd7 {[%clk 0:01:37]} 32. Ng3 {[%clk 0:00:03]}  Bd4 {[%clk 0:01:32]} 33. Qd2 {[%clk 0:00:04]}  Qe6+ {[%clk 0:01:28]} 34. Ne2 {[%clk 0:00:03]}  Be3 {[%clk 0:01:23]} 35. Qc3 {[%clk 0:00:03]}  Bxc1 {[%clk 0:01:22]} 36. Qxc1 {[%clk 0:00:04]}  Bg4 {[%clk 0:01:22]} 37. Qd2 {[%clk 0:00:04]}  a5 {[%clk 0:01:20]} 38. Kf2 {[%clk 0:00:04]}  a4 {[%clk 0:01:19]} 39. Nc3 {[%clk 0:00:03]}  Nb6 {[%clk 0:01:16]} 40. Re1 {[%clk 0:00:04]}  Qc4 {[%clk 0:01:15]} 41. Qa2 {[%clk 0:00:05]}  Qxa2+ {[%clk 0:01:11]} 42. Nxa2 {[%clk 0:00:06]}  Nd5 {[%clk 0:01:10]} 43. Rd1 {[%clk 0:00:04]}  Be6 {[%clk 0:01:10]} 44. Rc1 {[%clk 0:00:02]}  Nxf4 {[%clk 0:01:10]} 45. Nc3 {[%clk 0:00:00]}  Nd3+ {[%clk 0:01:10]} 0-1


[Site "https://www.chess.com"]

[Event "Titled Tuesday Blitz June 13 Late 2023"]
[White "Silva, Caio Henrique Angelico"]
[Black "Kubatko, Ivan"]
[WhiteFideId "22777210"]
[BlackFideId "24111473"]
[WhiteElo "2096"]
[BlackElo "2285"]
[Result "1-0"]
[Round "4"]
[TimeControl "180+2"]
[Date "2023.06.13"]
[WhiteClock "0:00:54"]
[BlackClock "0:00:00"]
[Board "117"]

1. Nf3 {[%clk 0:03:00]}  d5 {[%clk 0:02:57]} 2. g3 {[%clk 0:02:59]}  c5 {[%clk 0:02:54]} 3. Bg2 {[%clk 0:02:58]}  Nc6 {[%clk 0:02:54]} 4. d4 {[%clk 0:02:58]}  Nf6 {[%clk 0:02:53]} 5. O-O {[%clk 0:02:58]}  e6 {[%clk 0:02:53]} 6. c4 {[%clk 0:02:58]}  Be7 {[%clk 0:02:53]} 7. Nc3 {[%clk 0:02:58]}  O-O {[%clk 0:02:52]} 8. cxd5 {[%clk 0:02:58]}  exd5 {[%clk 0:02:52]} 9. Bg5 {[%clk 0:02:57]}  c4 {[%clk 0:02:51]} 10. b3 {[%clk 0:02:47]}  Qa5 {[%clk 0:02:30]} 11. Rc1 {[%clk 0:02:33]}  Ba3 {[%clk 0:02:25]} 12. Bxf6 {[%clk 0:02:31]}  gxf6 {[%clk 0:02:20]} 13. bxc4 {[%clk 0:02:28]}  Bxc1 {[%clk 0:02:16]} 14. Qxc1 {[%clk 0:02:24]}  dxc4 {[%clk 0:01:39]} 15. Ne4 {[%clk 0:02:22]}  Bf5 {[%clk 0:00:53]} 16. Nxf6+ {[%clk 0:02:19]}  Kg7 {[%clk 0:00:53]} 17. Qg5+ {[%clk 0:02:15]}  Bg6 {[%clk 0:00:53]} 18. Nh5+ {[%clk 0:02:11]}  Kg8 {[%clk 0:00:50]} 19. d5 {[%clk 0:02:04]}  Rad8 {[%clk 0:00:24]} 20. Nf6+ {[%clk 0:02:03]}  Kg7 {[%clk 0:00:24]} 21. h4 {[%clk 0:02:01]}  h6 {[%clk 0:00:18]} 22. Nh5+ {[%clk 0:02:01]}  Kh7 {[%clk 0:00:18]} 23. Nf6+ {[%clk 0:02:02]}  Kg7 {[%clk 0:00:18]} 24. Qf4 {[%clk 0:02:02]}  Rxd5 {[%clk 0:00:15]} 25. Nxd5 {[%clk 0:02:01]}  Qxd5 {[%clk 0:00:16]} 26. Nd2 {[%clk 0:01:53]}  Qe5 {[%clk 0:00:13]} 27. Qxc4 {[%clk 0:01:42]}  Rd8 {[%clk 0:00:14]} 28. Nf3 {[%clk 0:01:39]}  Qf6 {[%clk 0:00:13]} 29. e3 {[%clk 0:01:34]}  b6 {[%clk 0:00:12]} 30. Nh2 {[%clk 0:01:31]}  Na5 {[%clk 0:00:11]} 31. Qc7 {[%clk 0:01:29]}  Rd2 {[%clk 0:00:11]} 32. Ng4 {[%clk 0:01:28]}  Qb2 {[%clk 0:00:11]} 33. Ne5 {[%clk 0:01:17]}  Rc2 {[%clk 0:00:08]} 34. Qe7 {[%clk 0:01:15]}  Qxa2 {[%clk 0:00:02]} 35. Nxg6 {[%clk 0:01:13]}  Kxg6 {[%clk 0:00:03]} 36. Be4+ {[%clk 0:01:13]}  Kg7 {[%clk 0:00:03]} 37. Qe5+ {[%clk 0:01:13]}  Kf8 {[%clk 0:00:03]} 38. Bxc2 {[%clk 0:01:07]}  Qxc2 {[%clk 0:00:02]} 39. Qh8+ {[%clk 0:01:07]}  Ke7 {[%clk 0:00:03]} 40. Qxh6 {[%clk 0:01:08]}  Qc5 {[%clk 0:00:03]} 41. Qf4 {[%clk 0:01:08]}  Nc6 {[%clk 0:00:02]} 42. Qc7+ {[%clk 0:01:07]}  Kf6 {[%clk 0:00:02]} 43. Rd1 {[%clk 0:01:07]}  Ne5 {[%clk 0:00:02]} 44. Qxa7 {[%clk 0:01:01]}  Nf3+ {[%clk 0:00:02]} 45. Kg2 {[%clk 0:01:01]}  Qc6 {[%clk 0:00:02]} 46. Qa1+ {[%clk 0:01:00]}  Ke7 {[%clk 0:00:02]} 47. Qa3+ {[%clk 0:00:55]}  Kf6 {[%clk 0:00:02]} 48. e4 {[%clk 0:00:56]}  Ne5 {[%clk 0:00:00]} 49. Qe3 {[%clk 0:00:54]} 1-0


[Site "https://www.chess.com"]